Cogmind - Beta 14 @@@ ROGUE MODE // 2024.10.07 @ 19:08:13 Player: Deo Result: Destroyed by D-53 Grenadier with Mini Grenade Launcher Performance ------------- Evolutions (0) 0 Regions Visited (4) 800 Robots Destroyed (25) 125 Value Destroyed (496) 496 Prototype IDs (23) 460 Alien Tech Used (0) 0 Bonus (180) 180 TOTAL SCORE: 2061 Bonus ------- Follower Combat Kills 98 Aligned with FarCom 300 Friendly Fire -218 Cogmind --------- Core Integrity 0/250 Matter 300/300 Energy 100/100 System Corruption 6% Temperature Cool (0) Movement Core (100) Ox1 Location -9/Mines Parts ------- > --- POWER (1) -------- (None) > --- PROPULSION (2) --- (None) > --- UTILITY (2) ------ Small Storage Unit > --- WEAPON (2) ------- (None) > --- INVENTORY (8) ---- Ion Engine Terrain Scan Processor Targeting Computer ECM Suite Trap Reconfigurator Particle Cannon Peak State ------------ > --- POWER ------------ Ion Engine > --- PROPULSION ------- Aluminum Leg Makeshift Leg > --- UTILITY ---------- Signal Interpreter ECM Suite > --- WEAPON ----------- Particle Cannon Improved Light Cannon > --- INVENTORY -------- Flight Unit Targeting Computer Particle Cannon [Rating: 12] Favorites ----------- Power Ion Engine Engine Ion Engine Propulsion Aluminum Leg Treads Light Treads Leg Aluminum Leg Hover Unit Hover Unit Flight Unit Flight Unit Utility Signal Interpreter Device ECM Suite Storage Small Storage Unit Processor Signal Interpreter Protection Propulsion Shielding Weapon Particle Cannon Energy Gun EM Pulse Gun Energy Cannon Particle Cannon Ballistic Gun Assault Rifle Ballistic Cannon Improved Light Cannon Launcher Grenade Launcher Build | -11 -10 -10 -10 -9 ------- Run | Yrd Mat Min Exi Min Slots Evolved . | . . . . . Power . | . . . . . Propulsion . | . . . . . Utility . | . . . . . Weapon . | . . . . . Parts Attached 31 | 5 17 6 2 1 Power 2 | 1 1 . . . Engine 2 | 1 1 . . . Core . | . . . . . Reactor . | . . . . . Propulsion 10 | 2 6 2 . . Treads 2 | 2 . . . . Leg 4 | . 2 2 . . Wheel . | . . . . . Hover 2 | . 2 . . . Flight 2 | . 2 . . . Utility 8 | . 5 1 2 . Device 3 | . 2 1 . . Storage 2 | . . . 2 . Processor 2 | . 2 . . . Hackware . | . . . . . Protection 1 | . 1 . . . Artifact . | . . . . . Weapon 11 | 2 5 3 . 1 Energy Gun 2 | 2 . . . . Energy Cannon 3 | . . 3 . . Ballistic Gun 2 | . 1 . . 1 Ballistic Cannon 2 | . 2 . . . Launcher 2 | . 2 . . . Special Weapon . | . . . . . Impact Weapon . | . . . . . Slashing Weapon . | . . . . . Piercing Weapon . | . . . . . Special Melee Weapon . | . . . . . Unidentified Prototypes . | . . . . . Parts Lost 10 | . 3 1 . 6 Power 1 | . . . . 1 Propulsion 3 | . 1 . . 2 Utility 2 | . 1 . . 1 Weapon 4 | . 1 1 . 2 Highest Loss Streak 6 | . 2 1 . 6 To Critical Strikes . | . . . . . Average Slot Usage (%) 97 | . 95 99 100 96 Engine 13 | . 14 14 14 12 Leg 22 | . 13 28 28 27 Hover 4 | . 11 . . . Device 6 | . 8 14 1 . Storage 5 | . . . 12 14 Processor 13 | . 13 14 14 13 Energy Gun 2 | . 7 . . . Energy Cannon 17 | . . 22 28 24 Ballistic Gun 1 | . 4 . . 1 Ballistic Cannon 3 | . 9 3 . . Launcher 2 | . 6 2 . . Peak Build Rating 12 | 5 8 12 10 10 Average Rating 8 | 3 7 9 9 9 On Entrance 6 | . 5 8 9 10 Naked Turns . | . . . . . Heaviest Build 53 | 9 14 15 53 18 Greatest Support 40 | 40 40 30 20 20 Greatest Overweight (x) 3 | . 3 . 2 2 Average Overweight (x) . | . . . . . Largest Inventory Capacity 20 | 5 5 5 20 8 Average Capacity 8 | 5 5 5 12 8 Most Carried 7 | 5 5 5 6 7 Average Carried 4 | 3 4 4 3 4 Final Capacity 8 | 5 5 5 8 8 Final Carried 6 | 4 5 5 4 6 Class Distribution -------------------- 86% | Mutant 13% | Scavenger-Mutant Dominant Class ---------------- Mutant | -10/Materials Mutant | -10/Mines Mutant | -10/Exiles Mutant | -9/Mines Resources | -11 -10 -10 -10 -9 ----------- Run | Yrd Mat Min Exi Min Matter Collected 757 | 106 461 158 . 32 Remotely . | . . . . . Salvage Created 573 | . 433 78 . 62 Parts 42 | . 36 4 . 2 Haulers Intercepted 1 | . 1 . . . Recyclers Shooed 2 | . 1 1 . . Parts Field Recycled . | . . . . . Retrieved Matter . | . . . . . Parts Self-Destructed . | . . . . . Prevented . | . . . . . Kills | -11 -10 -10 -10 -9 ------- Run | Yrd Mat Min Exi Min Combat Hostiles Destroyed 17 | . 12 2 . 3 Guns 4 | . 4 . . . Cannons 11 | . 6 2 . 3 AOE 2 | . 2 . . . Classes Destroyed 10 | . 8 1 . 1 Worker 1 | . 1 . . . Tunneler 2 | . 2 . . . Hauler 1 | . 1 . . . Recycler 1 | . 1 . . . Operator 1 | . 1 . . . Watcher 2 | . 2 . . . Swarmer 6 | . 6 . . . Grunt 9 | . 6 2 . 1 Zionite 1 | . . 1 . . Assembled 2 | . . . . 2 Thug 1 | . . 1 . . Best Kill Streak 5 | . 5 1 . 2 Combat Bots Only 4 | . 4 1 . 2 Max Kills in Single Turn 2 | . 2 1 . 1 Gunslinging . | . . . . . Exploded 1 | . 1 . . . Melee . | . . . . . Uniques/NPCs Destroyed . | . . . . . Combat | -11 -10 -10 -10 -9 -------- Run | Yrd Mat Min Exi Min Hostile Shots Fired 121 | . 53 38 . 30 Missed 37 | . 16 15 . 6 Damage Taken 1348 | . 555 252 . 541 Core 259 | . 98 40 . 121 Absorbed by Shields . | . . . . . Core Remaining (%) 100 | 100 . . . . Volleys Fired 58 | . 34 12 . 12 Largest 2 | . 2 2 . 2 Hottest 136 | . 80 136 . 136 Shots Fired 111 | . 68 22 . 21 Gun 27 | . 24 . . 3 Cannon 73 | . 35 20 . 18 Launcher 11 | . 9 2 . . Special . | . . . . . Kinetic 48 | . 37 8 . 3 Thermal 30 | . . 12 . 18 Explosive 11 | . 9 2 . . Electromagnetic 22 | . 22 . . . Robot Hit Streak 5 | . 5 4 . 4 Robot Miss Streak 9 | . 9 3 . 3 Penetration Max . | . . . . . Secondary Targets . | . . . . . Shots Hit Robots 53 | . 31 10 . 12 Core Hits 39 | . 26 7 . 6 Critical Kills . | . . . . . Critical Parts Destroyed . | . . . . . Critical Strikes 3 | . 3 . . . Blast 3 | . 3 . . . Melee Attacks . | . . . . . Impact . | . . . . . Slashing . | . . . . . Piercing . | . . . . . Sneak Attacks . | . . . . . Combat Hostiles . | . . . . . Follow-up Attacks . | . . . . . Damage Inflicted 1675 | . 1005 375 . 295 Guns 170 | . 145 . . 25 Cannons 837 | . 397 171 . 269 Explosions 616 | . 444 172 . . Melee . | . . . . . Ramming 52 | . 19 32 . 1 Kinetic 524 | . 409 90 . 25 Thermal 350 | . . 81 . 269 Explosive 616 | . 444 172 . . Electromagnetic 133 | . 133 . . . Impact . | . . . . . Slashing . | . . . . . Piercing . | . . . . . Highest Corruption 6 | . . . . 6 Average Corruption 6 | . . . . 6 Corruption Purged . | . . . . . Corruption Blocked . | . . . . . Overload Shots . | . . . . . Overflow Damage . | . . . . . Projectiles . | . . . . . Explosions . | . . . . . Melee . | . . . . . Knockbacks 3 | . 2 1 . . Impact . | . . . . . Kinetic 3 | . 2 1 . . Secondary . | . . . . . Self-Inflicted Damage 69 | . 47 22 . . Shots 3 | . 2 1 . . Rammed 2 | . 2 . . . Targets Rammed 9 | . 2 5 . 2 Kicked 7 | . . 5 . 2 Crushed . | . . . . . Highest Temperature 313 | . 176 236 . 313 Average Temperature 79 | . 63 92 . 102 Received Heat Transfer 269 | . 123 87 . 59 Effects 4 | . . 4 . . Interference 4 | . . 4 . . Siege Activations . | . . . . . Robots Corrupted . | . . . . . Combat Hostiles . | . . . . . Parts Fried . | . . . . . Impact Corruptions . | . . . . . Robots Melted . | . . . . . Combat Hostiles . | . . . . . Parts Melted . | . . . . . Heat Transferred 629 | . . 148 . 481 Parts Sabotaged . | . . . . . Parts Stolen . | . . . . . Parts Stripped . | . . . . . Power Chain Reactions . | . . . . . Alert | -11 -10 -10 -10 -9 ------- Run | Yrd Mat Min Exi Min Peak Influence 227 | . 227 197 . 149 Initial 58 | . . 58 . . Average 86 | . 86 84 . 107 Maximum Alert Level 1 | . 1 . . . Low Security (%) 95 | 100 91 100 . 100 Level 1 4 | . 8 . . . Level 2 . | . . . . . Level 3 . | . . . . . Level 4 . | . . . . . Level 5 . | . . . . . High Security . | . . . . . Max Security . | . . . . . Squads Dispatched 1 | . 1 . . . Investigation 1 | . 1 . . . Extermination . | . . . . . Reinforcement . | . . . . . Assault . | . . . . . Garrison . | . . . . . Intercept . | . . . . . Searches Triggered . | . . . . . Construction Impeded . | . . . . . Haulers Reinforced . | . . . . . Active Scanning Responses . | . . . . . Cargo Convoy Interrupts . | . . . . . Stealth | -11 -10 -10 -10 -9 --------- Run | Yrd Mat Min Exi Min Distress Signals 1 | . 1 . . . Communications Jammed . | . . . . . Distress Signals . | . . . . . Times Spotted 44 | . 16 8 . 20 Peak Tracking Total 12 | . 4 3 . 12 Tactical Retreats 1 | . 1 . . . Traps | -11 -10 -10 -10 -9 ------- Run | Yrd Mat Min Exi Min Traps Triggered 2 | . 2 . . . Indirectly . | . . . . . Trap Hack Attempts . | . . . . . Triggered . | . . . . . Disarmed . | . . . . . Reprogrammed . | . . . . . Reused . | . . . . . Traps Extracted . | . . . . . Installed . | . . . . . Triggered . | . . . . . Machines | -11 -10 -10 -10 -9 ---------- Run | Yrd Mat Min Exi Min Machines Disabled 2 | . 1 . . 1 Max in Single Turn 1 | . 1 . . 1 Machines Repaired . | . . . . . Machines Dismantled . | . . . . . Machines Sabotaged . | . . . . . Overloaded Fab Kills . | . . . . . Hacking | -11 -10 -10 -10 -9 --------- Run | Yrd Mat Min Exi Min Machines Accessed 10 | . 5 . 5 . Terminals 3 | . 3 . . . Fabricators . | . . . . . Repair Stations . | . . . . . Recycling Units 2 | . 2 . . . Scanalyzers . | . . . . . Garrison Access . | . . . . . Total Hacks 60 | . 10 . 50 . Successful 55 | . 5 . 50 . Failed 5 | . 5 . . . Catastrophic . | . . . . . Database Lockouts . | . . . . . Manual 13 | . 7 . 6 . Terminals 6 | . 6 . . . Fabricators . | . . . . . Repair Stations . | . . . . . Recycling Units 4 | . 4 . . . Scanalyzers . | . . . . . Garrison Access . | . . . . . Terminal Hacks 52 | . 2 . 50 . Record 49 | . . . 49 . Alert Level 2 | . 2 . . . Derelict Proto ID Bank 1 | . . . 1 . Fabricator Hacks . | . . . . . Repair Station Hacks . | . . . . . Recycling Unit Hacks 3 | . 3 . . . Report Inventory 2 | . 2 . . . Retrieve Components 1 | . 1 . . . Scanalyzer . | . . . . . Garrison Access Hacks . | . . . . . Unauthorized Hacks . | . . . . . Terminals . | . . . . . Fabricators . | . . . . . Repair Stations . | . . . . . Recycling Units . | . . . . . Scanalyzers . | . . . . . Garrison Access . | . . . . . Data Cores Recovered 1 | . 1 . . . Used . | . . . . . Hacking Detections 2 | . 2 . . . Full Trace Events . | . . . . . Feedback Events . | . . . . . Feedback Blocked . | . . . . . Robot Schematics Acquired . | . . . . . Robots Built . | . . . . . Authchips . | . . . . . Time . | . . . . . Total Robot Build Rating . | . . . . . Part Schematics Acquired . | . . . . . Parts Built . | . . . . . Authchips . | . . . . . Time . | . . . . . Total Part Build Rating . | . . . . . Parts Repaired . | . . . . . Time . | . . . . . Parts Recycled . | . . . . . Recycled Matter . | . . . . . Retrieved Matter . | . . . . . Retrieved Components 7 | . 7 . . . Parts Scanalyzed . | . . . . . Part Schematics Acquired . | . . . . . Parts Damaged . | . . . . . Bothacking | -11 -10 -10 -10 -9 ------------ Run | Yrd Mat Min Exi Min Used RIF Installer . | . . . . . Robots Hacked . | . . . . . Non-combat . | . . . . . Combat . | . . . . . Robot Hacks Applied . | . . . . . Relay Couplers Released . | . . . . . Fabnet Peak Effective % . | . . . . . Robots Rewired . | . . . . . Allies Hacked . | . . . . . Hacks Repelled . | . . . . . Allies | -11 -10 -10 -10 -9 -------- Run | Yrd Mat Min Exi Min Total Allies 5 | . . 5 . . Largest Group 3 | . . 3 2 2 Highest-Rated Group 41 | . . 41 32 32 Highest-Rated Ally 31 | . . 31 16 16 Total Orders 3 | . . 3 . . AID 3 | . . 3 . . Ally Attacks 41 | . . 23 . 18 Total Damage 434 | . . 225 . 209 Kills 13 | . . 6 . 7 Allies Corrupted . | . . . . . Allies Melted . | . . . . . Intel | -11 -10 -10 -10 -9 ------- Run | Yrd Mat Min Exi Min Robot Analysis Total . | . . . . . Derelict Logs Recovered 3 | . . 2 . 1 Drone Launches . | . . . . . Drone Recoveries . | . . . . . Exploration | -11 -10 -10 -10 -9 ------------- Run | Yrd Mat Min Exi Min Turns Passed 4279 | 84 1418 897 1529 351 Spaces Moved 3121 | 55 1201 691 950 224 Core 18 | 15 . . . 3 Treads 108 | 40 68 . . . Legs 2297 | . 435 691 950 221 Wheels . | . . . . . Hover 695 | . 695 . . . Flight 3 | . 3 . . . Fastest Speed 50 | 50 56 120 120 100 Average Speed 119 | 130 86 121 158 120 Slowest Speed 280 | 160 280 130 260 150 Overloaded Moves . | . . . . . Propulsion Burnouts . | . . . . . Robots Hopped . | . . . . . Cave-ins Triggered . | . . . . . Exploration Rate (%) 63 | 4 98 87 93 34 Regions Visited 4 Branch Regions 3 Pre-discovered Areas 4 | . . 2 1 1 Known Exits Taken 3 | . 1 1 1 . Unknown Exits Taken 1 | 1 . . . . Scrap Searched 3 | . . 1 . 2 Spaces Dug . | . . . . . Terrain Destroyed 64 | . 54 10 . . Melee . | . . . . . Projectile 1 | . . 1 . . AOE 63 | . 54 9 . . Terrain Rammed . | . . . . . Walls Destroyed . | . . . . . Machines Disabled . | . . . . . Actions | -11 -10 -10 -10 -9 --------- Run | Yrd Mat Min Exi Min Total 3582 | 68 1522 726 981 285 Wait 287 | . 239 2 5 41 Move 3117 | 54 1200 690 949 224 Hop . | . . . . . Pick Up 43 | 9 17 4 10 3 Fast Attach . | . . . . . Attach 30 | 5 16 6 2 1 Detach 9 | . 2 4 2 1 Swap 1 | . 1 . . . Drop 26 | . 11 3 11 1 Fire 58 | . 34 12 . 12 Melee . | . . . . . Ram 1 | . 1 . . . Kick 7 | . . 5 . 2 Crush 1 | . 1 . . . Escape Stasis . | . . . . . Rewire 2 | . . . 2 . Trap . | . . . . . Miscellaneous . | . . . . . Route ------- -11/Scrapyard -10/Materials (discovered 4 exits: *Mat x3 / *Min) -10/Mines (discovered 2 exits: *Mat / *Exi) -10/Exiles (discovered 2 exits: *Min x2) -9/Mines (discovered 1 exit: *Mat) History --------- Turn | Location | Event 2 | -11/Scrapyard | Met Revision 17 6 | -11/Scrapyard | Discovered new exit (range 16) 85 | -11/Scrapyard | Entered Materials 232 | -10/Materials | Discovered new exit (range 17) 320 | -10/Materials | Discovered new exit (range 17) 504 | -10/Materials | Build established: Scavenger-Mutant 689 | -10/Materials | Identified exit to Mines 828 | -10/Materials | Discovered new exit (range 8) 863 | -10/Materials | Identified exit to Materials 1095 | -10/Materials | Build established: Mutant 1394 | -10/Materials | Discovered exit to Materials (range 13) 1503 | -10/Materials | Entered Mines 1599 | -10/Mines | Learned location of Zion (-7) 1616 | -10/Mines | Discovered exit to Materials (range 8) 1698 | -10/Mines | Core integrity fell below 50% 2015 | -10/Mines | Assisted by bots powering up and referring to "LRC-V3" 2150 | -10/Mines | Learned Materials emergency access door positions 2316 | -10/Mines | Learned location of Storage (-7) 2391 | -10/Mines | Deemed a non-threat by the Exiles lab entrance 2392 | -10/Mines | Discovered new exit (range 5) 2397 | -10/Mines | Identified exit to Exiles 2400 | -10/Mines | Entered Exiles 2400 | -10/Exiles | Accompanied by 2 allies 2464 | -10/Exiles | Discovered new exit (range 14) 2482 | -10/Exiles | Met 8R-AWN 2521 | -10/Exiles | Met EX-HEX 2659 | -10/Exiles | Met EX-DEC 2728 | -10/Exiles | Visited The Gauntlet 3298 | -10/Exiles | Discovered new exit (range 14) 3394 | -10/Exiles | Met EX-BIN 3490 | -10/Exiles | Aligned with FarCom system 3491 | -10/Exiles | Given EX-Vault access code 3566 | -10/Exiles | Opened EX-Vault 3574 | -10/Exiles | Found Chronowheel 3578 | -10/Exiles | Found Superbattery 3584 | -10/Exiles | Found Trap Reconfigurator 3628 | -10/Exiles | Warned to stay clear of 0b10 Research branches 3893 | -10/Exiles | Identified exit to Mines 3929 | -10/Exiles | Left Exiles lab with Trap Reconfigurator 3929 | -10/Exiles | Entered Mines 3929 | -9/Mines | Accompanied by 2 allies 4084 | -9/Mines | Discovered new exit (range 8) 4140 | -9/Mines | Identified exit to Materials 4195 | -9/Mines | Assembled infested the area 4279 | -9/Mines | Core integrity fell below 20% 4280 | -9/Mines | Destroyed by D-53 Grenadier with Mini Grenade Launcher Last Messages --------------- 04262_ The unstable cave ceiling collapses. 04265_ Assault Rifle destroyed. 04265_ K-01 Serf collects debris. 04265_ as-41540 destroyed. 04273_ Kicked as-32354. 04274_ as-41577 destroyed. 04275_ Aluminum Leg destroyed. 04275_ System corrupted by crushing effect (+3). 04275_ Signal Interpreter destroyed. 04275_ System corrupted by crushing effect (+3). 04276_ Aluminum Leg destroyed. 04276_ as-57399 destroyed. 04276_ as-10465 destroyed. 04276_ as-29003 destroyed. 04276_ as-68914 destroyed. 04276_ as-29453 destroyed. 04276_ as-32354 destroyed. 04276_ K-01 Serf collects debris. 04278_ Particle Cannon destroyed. 04278_ as-09963 destroyed. Map ----- +----------------------------------------------------+ | ???????????????????????????????????????????????? | | ???????????????????????????????????????????????? | | ???????????????????????????????????????????????? | | ???????????????????????????????????????????????? | | ???????????????????????????????????????????????? | | ???????????????????????????????????????????????? | | ???????????????????????????????????????????????? | | ???????????????????????????????????????????????? | | ???????? ? ???##???????????????????????????????? | | ????????# ??# ##########?????????????????????? | | ???????## ## # ##??????##????????????? | | ???????# # #????? #????????????? | | ?????? = ##???? ##???????????? | | ?????? = ???? #???????????? | | ?????? # % ##??? ???????????? | | ?????????????????# dk #??# """ ??????? | | ?????????????????# #??# """ ??????? | | ?????????????????#### ??# """ ???????? | | ?????????????????????#=%#### a ???????? | | ?????????????????????#%%# ????????? | | ????????????????????## = #?????????????? | | ????????????????????# %da #??????????????? | | ?????????????????????# [ #??????????????? | | ?????????????????????# ##??????????????? | | ?????????????????????# ##???????????????? | | ?????????????????????## @ ##????????????????? | | ??#???????????????????# #?????????????????? | | ## ??????????????????### # #?????????????????? | | ???????????????????## ###?????????????????? | | #######?????????????# #???????????????????? | | #?????????????# #???????????????????? | | #?????????????# #???????????????????? | | ##### #?????????????# #???????????????????? | | ?????#### #######???????# #???????????????????? | | ?????# = #???????# #???????????????????? | | ?????# *%""" %%######### ##??????????????????? | | ?????# [""" #??????????????????? | | ?????# """ #??????????????????? | | ?????# # ######## #??????????????????? | | ?????# # #??????# #??????????????????? | | ???####### ###### #??????# #??????????????????? | | ?### ### ##### ##?????# #??????????????????? | | ## ## ##????# #??????????????????? | | # ##### ###??# #?###############??? | | # ##??## ##?# ### #??? | | # ## ##??## #?# [% [= #??? | | # #### ##?## #?#####="""%""" """ #??? | | ## ##?## ### ##?????#%"""!""" """ #??? | | ?###???# ##??????#! """""" """ #??? | | ???????# ##???????# """%""" """ #??? | +----------------------------------------------------+ Best States ------------- Heat Dissipation 25 Energy Generation 10 Energy Capacity 250 Matter Stores 300 Matter Capacity 300 Sight Range 18 Robot Scan Range 14 Terrain Scan Density 10 ECM Strength 1 Propulsion Shielding 33 Evasion (%) 55 Recoil Reduction 2 Item Schematics ----------------- None Robot Schematics ------------------ None Fabricated ------------ Nothing Alien Tech Used ----------------- None Achievements -------------- Backstab Librarian Tourist Challenges ------------ None Game ------ Seed FortressDataSword Manual? 0 Play Time 00:48:28 Cumulative 3.7 hours Start 2024.10.07 @ 18:11:17 End 2024.10.07 @ 19:08:13 Sessions 1 Manual Loads 0 Difficulty Rogue Special Mode None Game No. 6 Rogue 6 Adventurer 0 Explorer 0 Win Type - Total 0 Types 0/0/0/0/0/0/0/0/0 Lore% 6 Gallery% 8 Achievement% 8 Wizard Run 0 Options --------- Layout 1 ASCII 0 Keyboard 0 Movement Arrows Keybinds 0 Fullscreen 0 Font 20/SmallcapsGlow Map View 50x35 Zoom Use 12% Tactical HUD 1 Map Filters NONE Filters NONE Steam 1 RUN: 323e5abf-2d74-41ce-9d88-793914e0e889